bitfinex/quotes_BTCUSD_20240915
["timestamp","ask_amount","ask_price","bid_price","bid_amount"]
[1726406579157,0.60568181,60425.0,60424.0,0.002644]
[1726406579689,0.93666981,60425.0,60424.0,0.002644]
[1726406580629,0.63165054,60425.0,60424.0,0.002644]
[1726406581114,0.96265457,60425.0,60424.0,0.002644]
[1726406581610,0.86343873,60425.0,60424.0,0.002644]
[1726406582720,0.9874938,60425.0,60424.0,0.002644]
[1726406583137,0.86343873,60425.0,60424.0,0.002644]
[1726406583812,0.98749989,60425.0,60424.0,0.002644]
[1726406584300,0.86343873,60425.0,60424.0,0.002644]
[1726406586431,0.83747,60425.0,60424.0,0.002644]
[1726406589148,1.168458,60425.0,60424.0,0.002644]
[1726406590008,0.83747,60425.0,60424.0,0.002644]
[1726406590131,0.96151522,60425.0,60424.0,0.002644]
[1726406591625,1.29250322,60425.0,60424.0,0.002644]
[1726406591852,1.168458,60425.0,60424.0,0.002644]
[1726406592070,1.268458,60425.0,60424.0,0.002644]
[1726406595217,1.43969821,60425.0,60424.0,0.002644]
[1726406595861,1.27821386,60425.0,60424.0,0.002644]
[1726406598030,0.97319812,60425.0,60424.0,0.002644]
[1726406598486,1.30418612,60425.0,60424.0,0.002644]
[1726406599653,1.41039985,60419.0,60418.0,0.0034464]
[1726406599895,0.165553,60404.0,60400.0,0.1694928]
[1726406600121,0.331097,60406.0,60400.0,0.1694928]
[1726406600356,0.165554,60404.0,60400.0,0.0039318]
[1726406600610,0.20141708,60411.0,60400.0,0.0039318]
[1726406600863,0.331104,60404.0,60400.0,0.0039318]
[1726406601094,0.16556,60401.0,60400.0,0.0039318]
[1726406601547,0.49668,60401.0,60400.0,0.0099318]
[1726406602199,0.49668,60401.0,60400.0,0.0039318]
[1726406602620,0.16556,60401.0,60400.0,0.0059318]
[1726406603034,1.41488628,60401.0,60400.0,0.0059318]
[1726406603506,1.48922149,60401.0,60400.0,0.0059318]
[1726406603730,1.41588628,60401.0,60400.0,0.0039318]
[1726406604419,1.49222206,60401.0,60400.0,0.0039318]
[1726406604654,1.41688628,60401.0,60400.0,0.0039318]
[1726406604906,1.42688628,60401.0,60400.0,0.0039318]
[1726406605197,1.65932333,60401.0,60400.0,0.0039318]
[1726406605451,1.60978628,60401.0,60400.0,0.0039318]
[1726406605677,1.65730997,60401.0,60400.0,0.0039318]
[1726406606126,1.66830997,60401.0,60400.0,0.0039318]
[1726406606381,1.71907923,60401.0,60400.0,0.0039318]
[1726406606597,1.61878628,60401.0,60400.0,0.0039318]
[1726406606830,1.66829941,60401.0,60400.0,0.0039318]
[1726406607501,1.60778628,60401.0,60400.0,0.0039318]
[1726406607729,1.65829941,60401.0,60400.0,0.0039318]
[1726406607963,1.61878628,60401.0,60400.0,0.0039318]
[1726406608201,1.66829941,60401.0,60400.0,0.0039318]
[1726406608663,1.61878628,60401.0,60400.0,0.0039318]
[1726406609357,1.66829941,60401.0,60400.0,0.0039318]
[1726406609603,1.61878628,60401.0,60400.0,0.0039318]
[1726406610101,1.66829941,60401.0,60400.0,0.0039318]
[1726406610333,1.79002649,60401.0,60400.0,0.0039318]
[1726406610567,1.79002649,60401.0,60400.0,0.0055778]
[1726406610568,1.60712649,60401.0,60400.0,0.0055778]
[1726406611776,1.43588628,60401.0,60400.0,0.0055778]
[1726406613412,1.48539941,60401.0,60400.0,0.0055778]
[1726406613670,0.99831313,60401.0,60400.0,0.0055778]
[1726406613929,0.61768,60401.0,60400.0,0.0055778]
[1726406614412,0.9488,60401.0,60400.0,0.0055778]
[1726406614670,0.9388,60401.0,60400.0,0.0055778]
[1726406614906,0.02,60401.0,60400.0,0.1731398]
[1726406615421,0.011,60401.0,60400.0,0.1731398]
[1726406615653,0.00996099,60411.0,60402.0,0.002]
[1726406615902,0.016,60401.0,60400.0,0.5022598]
[1726406616143,0.1,60412.0,60400.0,0.0055778]
[1726406616367,0.04951313,60416.0,60401.0,0.165558]
[1726406616368,0.165547,60406.0,60401.0,0.165558]
[1726406617062,0.165549,60405.0,60401.0,0.165558]
[1726406617329,0.165549,60405.0,60400.0,0.0055778]
[1726406617565,0.331098,60405.0,60400.0,0.0055778]
[1726406618286,0.00413916,60406.0,60400.0,0.0055778]
[1726406618287,0.331105,60404.0,60400.0,0.0055778]
[1726406618774,0.165558,60402.0,60401.0,0.003]
[1726406619047,0.496659,60404.0,60401.0,0.003]
[1726406619309,0.00413952,60403.0,60401.0,0.003]
[1726406619562,0.165554,60403.0,60401.0,0.003]
[1726406620337,0.165554,60403.0,60400.0,0.0055778]
[1726406620994,0.003,60405.0,60400.0,0.0055778]
[1726406621226,0.165545,60407.0,60400.0,0.1711378]
[1726406621456,0.1,60410.0,60400.0,0.0055778]
[1726406621713,0.1,60411.0,60403.0,0.165553]
[1726406621953,0.12597795,60408.0,60401.0,0.001]
[1726406622189,0.12597795,60408.0,60403.0,0.165553]
[1726406622689,0.004,60407.0,60403.0,0.165553]
[1726406622944,0.004,60407.0,60402.0,0.331114]
[1726406623180,0.1,60411.0,60409.0,0.165537]
[1726406623181,0.005,60411.0,60409.0,0.165537]
[1726406623423,0.005,60411.0,60406.0,0.331092]
[1726406623692,0.005,60411.0,60408.0,0.165539]
[1726406623918,0.005,60411.0,60405.0,0.5066]
[1726406624162,0.005,60411.0,60405.0,0.3171]
[1726406624409,0.005,60411.0,60406.0,0.165544]
[1726406624648,0.005,60411.0,60406.0,0.331089]
[1726406624876,0.005,60411.0,60408.0,0.165539]
[1726406625331,0.1,60412.0,60406.0,0.33109]
[1726406625617,0.003,60411.0,60407.0,0.165543]
[1726406625876,0.002,60411.0,60407.0,0.165543]
[1726406626351,0.003,60411.0,60407.0,0.165543]
[1726406626799,0.005,60411.0,60407.0,0.165543]
[1726406627022,0.002,60411.0,60407.0,0.165543]
[1726406627938,0.002,60411.0,60408.0,0.16554]
[1726406628158,0.10413873,60415.0,60408.0,0.16554]
[1726406628159,0.1,60413.0,60408.0,0.16554]
[1726406628389,0.003,60411.0,60408.0,0.16554]
[1726406628628,0.002,60411.0,60408.0,0.16554]
[1726406629091,0.003,60411.0,60410.0,0.165535]
[1726406629312,0.21503212,60416.0,60410.0,0.165535]
[1726406629535,0.003,60411.0,60410.0,0.165535]
[1726406629986,0.003,60411.0,60409.0,0.165537]
[1726406630228,0.005,60411.0,60408.0,0.165539]
[1726406630761,0.005,60411.0,60408.0,0.165538]
[1726406630994,0.005,60411.0,60409.0,0.165537]
[1726406631491,0.265523,60415.0,60409.0,0.165537]
[1726406631716,0.002,60411.0,60409.0,0.165537]
[1726406631960,0.003,60411.0,60409.0,0.165537]
[1726406632425,0.002,60411.0,60409.0,0.165537]
[1726406633351,0.002,60411.0,60410.0,0.165535]
[1726406633560,0.003,60411.0,60410.0,0.165535]
[1726406634025,0.003,60411.0,60408.0,0.496619]
[1726406634228,0.003,60411.0,60409.0,0.165538]
[1726406635073,0.166356,60411.0,60405.0,0.482647]
[1726406635305,0.002824,60411.0,60407.0,0.165542]
[1726406635514,0.003824,60411.0,60408.0,0.16554]
[1726406635736,0.001824,60411.0,60408.0,0.16554]
[1726406635933,0.001824,60411.0,60409.0,0.004]
[1726406636154,0.165535,60410.0,60409.0,0.004]
[1726406636795,0.165539,60409.0,60405.0,0.004]
[1726406637044,0.165541,60408.0,60405.0,0.004]
[1726406638108,0.165541,60408.0,60403.0,0.165553]
[1726406638746,0.166541,60408.0,60405.0,0.007]
[1726406639200,0.331076,60409.0,60399.0,0.001646]
[1726406639436,0.16555,60405.0,60403.0,0.011]
[1726406639897,0.16555,60405.0,60403.0,0.004]
[1726406640100,0.16555,60405.0,60399.0,0.001646]
[1726406640101,0.16555,60405.0,60400.0,0.1711388]
[1726406640563,0.15282685,60408.0,60400.0,0.0055778]
[1726406640791,0.331106,60404.0,60400.0,0.0055778]
[1726406641256,0.331105,60404.0,60400.0,0.0055778]
[1726406641477,0.331098,60405.0,60400.0,0.0095778]
[1726406641700,0.165558,60402.0,60400.0,0.0095778]
[1726406641921,0.331114,60402.0,60400.0,0.0095778]
[1726406642674,0.331114,60402.0,60400.0,0.0055778]
[1726406642911,0.331114,60402.0,60400.0,0.0095778]
[1726406643171,0.33112,60401.0,60400.0,0.0095778]
[1726406643412,0.33112,60401.0,60400.0,0.0055778]
[1726406643413,0.16556,60401.0,60400.0,0.0055778]
[1726406643705,0.165557,60402.0,60400.0,0.0055778]
[1726406644112,0.165553,60404.0,60400.0,0.0055778]
[1726406644346,0.165555,60403.0,60400.0,0.0055778]
[1726406644597,0.165551,60405.0,60400.0,0.0055778]
[1726406644813,0.165555,60403.0,60400.0,0.0055778]
[1726406645042,0.1,60406.0,60400.0,0.0065778]
[1726406645282,0.265546,60406.0,60400.0,0.0085778]
[1726406645502,0.265546,60406.0,60400.0,0.0065778]
[1726406645742,0.003,60405.0,60400.0,0.0055778]
[1726406645971,0.002,60405.0,60400.0,0.0055778]
[1726406646912,0.265546,60406.0,60400.0,0.0055778]
[1726406647131,0.1,60406.0,60400.0,0.0055778]
[1726406647377,0.165541,60408.0,60400.0,0.0055778]
[1726406647630,0.165543,60407.0,60400.0,0.0055778]
[1726406647871,0.1,60406.0,60400.0,0.1711398]
[1726406648109,0.1,60407.0,60400.0,0.0055778]
[1726406648337,0.003,60406.0,60400.0,0.0055778]
[1726406648570,0.003,60405.0,60400.0,0.0055778]
[1726406648828,0.003,60406.0,60400.0,0.0055778]
[1726406649071,0.1,60407.0,60400.0,0.0055778]
[1726406649533,0.004,60406.0,60400.0,0.0055778]
[1726406650260,0.003,60406.0,60400.0,0.0055778]
[1726406650777,0.003,60406.0,60400.0,0.3367008]
[1726406650987,0.003,60406.0,60401.0,0.165558]
[1726406651234,0.003,60406.0,60400.0,0.3367008]
[1726406651495,0.003,60406.0,60401.0,0.331117]
[1726406651746,0.003,60406.0,60400.0,0.3367008]
[1726406651958,0.1,60410.0,60402.0,0.165556]
[1726406652179,0.004,60406.0,60402.0,0.165556]
[1726406652414,0.003,60406.0,60401.0,0.165558]
[1726406652882,0.004,60406.0,60401.0,0.165558]
[1726406653129,0.05661256,60410.0,60401.0,0.331116]
[1726406653349,0.004,60406.0,60403.0,0.165553]
[1726406653606,0.004,60406.0,60401.0,0.331116]
[1726406653853,0.14961256,60408.0,60401.0,0.331116]
[1726406654800,0.04961256,60409.0,60402.0,0.165556]
[1726406655027,0.003,60406.0,60402.0,0.165556]
[1726406655245,0.007,60406.0,60402.0,0.165556]
[1726406655458,0.04961256,60408.0,60402.0,0.165556]
[1726406655687,0.04964059,60408.0,60402.0,0.165556]
[1726406655938,0.06064059,60408.0,60402.0,0.165556]
[1726406656160,0.05464059,60408.0,60402.0,0.165556]
[1726406656439,0.004,60406.0,60401.0,0.331116]
[1726406656706,0.004,60406.0,60402.0,0.165555]
[1726406656933,0.14964059,60408.0,60401.0,0.331116]
[1726406657179,0.04964059,60407.0,60402.0,0.166556]
[1726406657911,0.04964059,60407.0,60402.0,0.001]
[1726406658422,0.04964059,60406.0,60400.0,0.0055778]
[1726406658665,0.04964059,60406.0,60402.0,0.165556]
[1726406658895,0.05364059,60406.0,60402.0,0.165556]
[1726406659178,0.04964059,60406.0,60403.0,0.165554]
[1726406659417,0.15864059,60407.0,60403.0,0.165554]
[1726406659665,0.15864059,60407.0,60400.0,0.3367018]
[1726406659666,0.04964059,60406.0,60401.0,0.165558]
[1726406659914,0.04964059,60405.0,60401.0,0.165558]
[1726406660407,0.04967867,60405.0,60401.0,0.165558]
[1726406660638,0.007,60406.0,60401.0,0.165558]
[1726406660639,0.05667867,60406.0,60401.0,0.165558]
[1726406661372,0.05367867,60406.0,60401.0,0.165558]
[1726406661606,0.05367867,60406.0,60401.0,0.331119]
[1726406661797,0.04967867,60405.0,60403.0,0.165553]
[1726406662585,0.04967867,60405.0,60400.0,0.0055778]
[1726406662805,0.04967867,60404.0,60400.0,0.0055778]
[1726406663077,0.04967867,60402.0,60400.0,0.0055778]
[1726406663591,0.04967867,60401.0,60400.0,0.0055778]
[1726406664758,0.04967867,60403.0,60400.0,0.0055778]
[1726406665681,0.04967867,60403.0,60400.0,0.0075778]
[1726406665682,0.04967867,60401.0,60400.0,0.0075778]
[1726406665911,0.26490734,60405.0,60400.0,0.0095778]
[1726406665912,0.04967867,60402.0,60400.0,0.0095778]
[1726406666105,0.04967867,60402.0,60400.0,0.0055778]
[1726406666332,0.04967867,60403.0,60400.0,0.0055778]
[1726406666556,0.05067867,60403.0,60400.0,0.0055778]
[1726406666769,0.04967867,60404.0,60400.0,0.0055778]
[1726406667018,0.21522767,60405.0,60400.0,0.0055778]
[1726406667692,0.04967867,60404.0,60400.0,0.0055778]
[1726406667928,0.04969846,60404.0,60400.0,0.0055778]
[1726406668384,0.001,60402.0,60400.0,0.0055778]
[1726406668618,0.04969846,60405.0,60400.0,0.0055778]
[1726406668809,0.05369846,60405.0,60400.0,0.0055778]
[1726406669065,0.001,60403.0,60400.0,0.0055778]
[1726406669794,0.165546,60406.0,60400.0,0.0055778]
[1726406670021,0.0497004,60402.0,60400.0,0.0055778]
[1726406670258,0.0497004,60403.0,60400.0,0.0055778]
[1726406670479,0.0497004,60402.0,60400.0,0.0055778]
[1726406672083,0.07567841,60402.0,60400.0,0.0055778]
[1726406673185,0.07667841,60402.0,60400.0,0.0055778]
[1726406673716,0.07667841,60402.0,60400.0,0.1711398]
[1726406673937,0.07667841,60402.0,60400.0,0.0055778]
[1726406674804,0.07668069,60402.0,60400.0,0.0055778]
[1726406675755,0.04970268,60401.0,60400.0,0.0055778]
[1726406676262,0.07668069,60402.0,60400.0,0.0055778]
[1726406676952,0.04970268,60401.0,60400.0,0.1711398]
[1726406677187,0.04970268,60401.0,60400.0,0.1721398]
[1726406677966,0.04970268,60401.0,60400.0,0.1731398]
[1726406678376,0.04970268,60401.0,60400.0,0.1721398]
[1726406679489,0.04970268,60401.0,60400.0,0.0065778]
[1726406679710,0.04970268,60401.0,60400.0,0.0075778]
[1726406681315,0.04970268,60401.0,60400.0,0.1731398]
[1726406683479,0.04970268,60401.0,60400.0,0.5042648]
[1726406683690,0.04970268,60401.0,60400.0,0.1731398]
[1726406684105,0.02597766,60401.0,60400.0,0.1731398]
[1726406684307,0.04970268,60402.0,60401.0,0.16556]
[1726406685562,0.04970268,60402.0,60400.0,0.0055778]
[1726406685786,0.04971787,60401.0,60400.0,0.0055778]
[1726406686225,0.04971787,60401.0,60400.0,0.1711378]
[1726406686938,0.04971787,60401.0,60400.0,0.1721378]
[1726406687165,0.04971787,60401.0,60400.0,0.0065778]
[1726406687385,0.07455403,60402.0,60400.0,0.0065778]
[1726406687852,0.07455403,60402.0,60400.0,0.1721398]
[1726406688072,0.07455403,60402.0,60401.0,0.16556]
[1726406688290,0.09940537,60403.0,60401.0,0.16556]
[1726406688497,0.07458109,60402.0,60401.0,0.16556]
[1726406688950,0.09940537,60403.0,60400.0,0.0055778]
[1726406689193,0.09940537,60402.0,60400.0,0.0055778]
[1726406689419,0.10040537,60402.0,60400.0,0.0055778]
[1726406689664,0.09940537,60401.0,60400.0,0.0055778]
[1726406692064,0.09940537,60401.0,60400.0,0.0065778]
[1726406692539,0.09940537,60401.0,60400.0,0.0075778]
[1726406693517,0.0994662,60401.0,60400.0,0.0075778]
[1726406693759,0.12544445,60401.0,60400.0,0.0065778]
[1726406694240,0.12744445,60401.0,60400.0,0.0065778]
[1726406694481,0.1014662,60401.0,60400.0,0.0055778]
[1726406694952,0.2680262,60401.0,60400.0,0.0055778]
[1726406695477,0.2650262,60401.0,60400.0,0.0055778]
[1726406695725,0.2680262,60401.0,60400.0,0.0055778]
[1726406696219,0.5991462,60401.0,60400.0,0.0055778]
[1726406697472,0.2680262,60401.0,60400.0,0.0055778]
[1726406697706,0.5991462,60401.0,60400.0,0.0055778]
[1726406698416,0.59913461,60401.0,60400.0,0.0055778]
[1726406698905,0.26801461,60401.0,60400.0,0.0055778]
[1726406699593,0.9257143,60401.0,60400.0,0.0055778]
[1726406700049,0.49968,60401.0,60400.0,0.0055778]
[1726406700524,0.8308,60401.0,60400.0,0.0055778]
[1726406700971,0.9308,60401.0,60400.0,0.0055778]
[1726406701906,0.95678049,60401.0,60400.0,0.0055778]
[1726406702359,1.38281479,60401.0,60400.0,0.0055778]
[1726406703750,1.554055,60401.0,60400.0,0.0055778]
[1726406704500,1.158937,60400.0,60399.0,0.001646]
[1726406704725,1.158937,60400.0,60389.0,0.001644]
[1726406704726,0.49677,60390.0,60389.0,0.001644]
[1726406704956,0.9228643,60390.0,60389.0,0.001644]
[1726406705207,1.0471061,60390.0,60389.0,0.001644]
[1726406705451,1.69137071,60390.0,60389.0,0.001644]
[1726406706429,1.70037071,60390.0,60389.0,0.002644]
[1726406706652,1.70837071,60390.0,60389.0,0.001644]
[1726406707115,1.71737071,60390.0,60389.0,0.002644]
[1726406707338,1.69937071,60390.0,60389.0,0.001644]
[1726406707562,1.70905894,60390.0,60389.0,0.001644]
[1726406708070,0.9229463,60384.0,60383.0,0.001646]
[1726406708536,1.0229463,60384.0,60383.0,0.001646]
[1726406709425,1.0269463,60384.0,60383.0,0.001646]
[1726406710336,1.49657193,60384.0,60383.0,0.001646]
[1726406710565,1.259266,60383.0,60379.0,0.001646]
[1726406710815,1.259266,60383.0,60364.0,0.0039318]
[1726406710816,0.331293,60370.0,60364.0,0.0039318]
[1726406711050,0.5918733,60367.0,60364.0,0.0039318]
[1726406711262,0.9231793,60367.0,60364.0,0.0039318]
[1726406711944,0.5918733,60367.0,60364.0,0.0039318]
[1726406712884,0.6008733,60367.0,60364.0,0.0039318]
[1726406713108,0.9311793,60367.0,60364.0,0.0039318]
[1726406713326,0.5998733,60367.0,60364.0,0.0039318]
[1726406713773,0.496959,60367.0,60364.0,0.0039318]
[1726406714065,0.504959,60367.0,60364.0,0.0039318]
[1726406714310,0.008,60367.0,60364.0,0.0039318]
[1726406715723,0.009,60367.0,60364.0,0.0039318]
[1726406715959,0.006,60367.0,60364.0,0.0039318]
[1726406716193,0.006,60367.0,60366.0,0.498612]
[1726406716194,0.012,60367.0,60366.0,0.498612]
[1726406716424,0.012,60367.0,60366.0,1.161236]
[1726406716425,0.006,60367.0,60366.0,1.161236]
[1726406716670,0.1,60383.0,60367.0,0.331305]
[1726406716893,0.1,60383.0,60369.0,0.15208972]
[1726406717119,0.1,60377.0,60372.0,0.165637]
[1726406717357,0.1,60377.0,60373.0,0.165636]
[1726406717839,0.1,60377.0,60374.0,0.165633]
[1726406718079,0.1,60377.0,60372.0,0.165638]
[1726406718321,0.165622,60379.0,60373.0,0.165636]
[1726406718322,0.1,60378.0,60373.0,0.165636]
[1726406719048,0.165623,60378.0,60371.0,0.496923]
[1726406719308,0.1,60377.0,60374.0,0.003]
[1726406719576,0.1,60377.0,60372.0,0.165639]
[1726406720080,0.1,60377.0,60373.0,0.002]
[1726406720326,0.1,60377.0,60372.0,0.165639]
[1726406720569,0.1,60377.0,60374.0,0.001648]
[1726406721925,0.1,60377.0,60374.0,0.004648]
[1726406722602,0.265627,60377.0,60374.0,0.004648]
[1726406722823,0.265627,60377.0,60374.0,0.007648]
[1726406723291,0.1,60378.0,60374.0,0.007648]
[1726406723512,0.165626,60377.0,60374.0,0.007648]
[1726406723724,0.1,60378.0,60374.0,0.007648]
[1726406723725,0.265623,60378.0,60374.0,0.007648]
[1726406724818,0.265623,60378.0,60374.0,0.004648]
[1726406725046,0.265623,60378.0,60374.0,0.001648]
[1726406725260,0.265623,60378.0,60374.0,0.005648]
[1726406725888,0.1,60378.0,60374.0,0.005648]
[1726406726331,0.1,60376.0,60374.0,0.005648]
[1726406727478,0.265624,60378.0,60374.0,0.005648]
[1726406727706,0.165626,60377.0,60374.0,0.005648]
[1726406727924,0.1,60376.0,60374.0,0.005648]
[1726406728154,0.1,60376.0,60374.0,0.003648]
[1726406728645,0.265629,60376.0,60374.0,0.005648]
[1726406728892,0.1,60376.0,60374.0,0.009648]
[1726406729109,0.265631,60375.0,60374.0,0.009648]
[1726406729338,0.1,60375.0,60374.0,0.009648]
[1726406730251,0.1,60376.0,60374.0,0.005648]
[1726406730466,0.001,60375.0,60374.0,0.010648]
[1726406730916,0.101,60375.0,60374.0,0.010648]
[1726406731349,0.266631,60375.0,60374.0,0.010648]
[1726406731788,0.265631,60375.0,60374.0,0.005648]
[1726406732011,0.265631,60375.0,60374.0,0.001648]
[1726406732234,0.266631,60375.0,60374.0,0.010648]
[1726406732449,0.267454,60375.0,60374.0,0.010648]
[1726406732682,0.267454,60375.0,60374.0,0.006648]
[1726406732904,0.268454,60375.0,60374.0,0.011648]
[1726406734355,0.102823,60375.0,60374.0,0.011648]
[1726406734573,0.268454,60375.0,60374.0,0.011648]
[1726406737880,0.930978,60375.0,60374.0,0.011648]
[1726406741443,1.26224,60375.0,60374.0,0.011648]
[1726406741680,1.60110715,60375.0,60374.0,0.011648]
[1726406741893,1.70121292,60375.0,60374.0,0.011648]
[1726406742114,1.6999254,60375.0,60374.0,0.011648]
[1726406742579,1.7002112,60375.0,60374.0,0.001648]
[1726406742803,1.6982112,60375.0,60374.0,0.001648]
[1726406743049,1.7072112,60375.0,60374.0,0.001648]
[1726406743265,2.0354732,60375.0,60374.0,0.001648]
[1726406743482,2.08388585,60375.0,60374.0,0.001648]
[1726406743717,0.81194604,60375.0,60366.0,0.001644]
[1726406743927,1.35459341,60367.0,60366.0,0.001644]
[1726406744573,1.35659341,60367.0,60366.0,0.001644]
[1726406744805,1.38259067,60367.0,60366.0,0.001644]
[1726406745022,1.91209667,60367.0,60366.0,0.001644]
[1726406745227,1.91209667,60367.0,60364.0,0.0039318]
[1726406745228,1.590926,60365.0,60364.0,0.0039318]
[1726406745431,1.592926,60365.0,60364.0,0.0039318]
[1726406746199,1.16163,60364.0,60363.0,0.001646]
[1726406746459,1.68797541,60364.0,60363.0,0.001646]
[1726406746663,1.261648,60363.0,60362.0,0.001644]
[1726406747001,0.2227,60362.0,60346.0,0.0071138]
[1726406747205,1.442369,60362.0,60346.0,0.0071138]
[1726406747421,1.94494321,60362.0,60346.0,0.0071138]
[1726406747569,1.02349441,60352.0,60346.0,0.0071138]
[1726406747777,1.35488341,60352.0,60346.0,0.0071138]
[1726406748161,1.41205751,60352.0,60346.0,0.0071138]
[1726406749325,1.41505751,60352.0,60346.0,0.0071138]
[1726406749963,1.41905751,60352.0,60346.0,0.0071138]
[1726406750461,1.57695402,60352.0,60346.0,0.0071138]
[1726406751970,2.10604302,60352.0,60346.0,0.0071138]
[1726406752247,1.1599,60350.0,60346.0,0.0071138]
[1726406752473,1.71344968,60350.0,60346.0,0.0071138]
[1726406752712,1.8846475,60350.0,60346.0,0.0071138]
[1726406753167,1.78554021,60350.0,60346.0,0.0071138]
[1726406753397,1.81554021,60350.0,60346.0,0.0071138]
[1726406753619,1.74556851,60347.0,60346.0,0.0071138]
[1726406753845,1.91680872,60347.0,60346.0,0.0071138]
[1726406754107,1.58339272,60347.0,60346.0,0.0071138]
[1726406755512,1.59739272,60347.0,60346.0,0.0071138]
[1726406755962,1.58339272,60347.0,60346.0,0.0071138]
[1726406756176,1.59739272,60347.0,60346.0,0.0087598]
[1726406756410,1.60734664,60347.0,60346.0,0.0087598]
[1726406756662,1.63335191,60347.0,60346.0,0.0087598]
[1726406756888,1.63135191,60347.0,60346.0,0.0087598]
[1726406757351,1.64335191,60347.0,60346.0,0.0087598]
[1726406757576,1.60534664,60347.0,60346.0,0.0087598]
[1726406758007,1.61434664,60347.0,60346.0,0.0087598]
[1726406758925,1.60234664,60347.0,60346.0,0.0087598]
[1726406759426,1.61134664,60347.0,60346.0,0.0087598]
[1726406760548,1.63735213,60347.0,60346.0,0.0087598]
[1726406762433,0.98249941,60347.0,60346.0,0.0087598]
[1726406762656,0.64112949,60347.0,60346.0,0.0087598]
[1726406762878,0.018,60347.0,60346.0,0.0087598]
[1726406763333,0.018,60347.0,60346.0,0.5058928]
[1726406763772,0.165695,60352.0,60346.0,0.1744708]
[1726406763996,0.009,60347.0,60346.0,0.1744708]
[1726406764264,0.01,60347.0,60346.0,0.0087598]
[1726406764491,0.506124,60347.0,60346.0,0.0087598]
[1726406764937,0.507124,60347.0,60346.0,0.0087598]
[1726406765155,0.83754,60347.0,60346.0,0.0087598]
[1726406765376,1.259956,60347.0,60346.0,0.0087598]
[1726406765634,1.40206955,60347.0,60346.0,0.0087598]
[1726406765858,1.73448555,60347.0,60346.0,0.0087598]
[1726406766104,1.73648555,60347.0,60346.0,0.0087598]
[1726406766316,1.41419051,60345.0,60344.0,0.001646]
[1726406766574,1.41219051,60345.0,60344.0,0.001646]
[1726406767981,1.41419051,60345.0,60344.0,0.001646]
[1726406768643,1.77561751,60345.0,60344.0,0.001646]
[1726406769082,1.77861751,60345.0,60344.0,0.001646]
[1726406769320,1.58843072,60345.0,60344.0,0.001646]
[1726406769814,1.58543072,60345.0,60344.0,0.001646]
[1726406770033,1.62543072,60345.0,60344.0,0.001646]
[1726406770248,1.62343072,60345.0,60344.0,0.001646]
[1726406770457,1.64643072,60345.0,60344.0,0.001646]
[1726406770672,2.01186533,60345.0,60344.0,0.001646]
[1726406770886,2.00386533,60345.0,60344.0,0.001646]
[1726406771094,1.67043833,60345.0,60344.0,0.001646]
[1726406771261,1.51319812,60345.0,60344.0,0.001646]
[1726406771500,1.49919812,60345.0,60344.0,0.001646]
[1726406771671,1.44619812,60345.0,60344.0,0.001646]
[1726406771886,1.48219812,60345.0,60344.0,0.001646]
[1726406772327,1.49619812,60345.0,60344.0,0.001646]
[1726406772523,1.57479955,60345.0,60344.0,0.001646]
[1726406772728,1.56079955,60345.0,60344.0,0.001646]
[1726406772927,1.56079955,60345.0,60344.0,0.501646]
[1726406773194,1.54479955,60345.0,60344.0,0.501646]
[1726406773650,1.46619812,60345.0,60344.0,0.501646]
[1726406775587,1.287994,60345.0,60344.0,0.501646]
[1726406778780,1.3140009,60345.0,60344.0,0.501646]
[1726406781231,1.3160009,60345.0,60344.0,0.501646]
[1726406782577,1.3460009,60345.0,60344.0,0.501646]
[1726406783221,1.51524413,60345.0,60344.0,0.501646]
[1726406784371,1.48923723,60345.0,60344.0,0.501646]
[1726406784639,1.53875454,60345.0,60344.0,0.501646]
[1726406785546,1.48923723,60345.0,60344.0,0.501646]
[1726406786674,1.39426997,60345.0,60344.0,0.501646]
[1726406786899,1.57122514,60345.0,60344.0,0.501646]
[1726406787647,1.6219904,60345.0,60344.0,0.501646]
[1726406788514,1.62223083,60345.0,60344.0,0.501646]
[1726406788724,1.49819711,60345.0,60344.0,0.501646]
[1726406789410,1.66943732,60345.0,60344.0,0.501646]
[1726406789897,1.49819711,60345.0,60344.0,0.501646]
[1726406791712,1.64703758,60345.0,60344.0,0.501646]
[1726406792173,1.49284107,60345.0,60344.0,0.501646]
[1726406792407,1.3440006,60345.0,60344.0,0.501646]
[1726406793790,1.46308613,60345.0,60344.0,0.501646]
[1726406794041,0.62514,60345.0,60344.0,0.501646]
[1726406795232,0.60514,60345.0,60344.0,0.501646]
[1726406797014,0.6311443,60345.0,60344.0,0.501646]
[1726406797232,0.9625713,60345.0,60344.0,0.501646]
[1726406798321,0.6311443,60345.0,60344.0,0.501646]
[1726406799076,0.9485713,60345.0,60344.0,0.501646]
[1726406799322,0.9575713,60345.0,60344.0,0.501646]
[1726406799774,0.6171443,60345.0,60344.0,0.501646]
[1726406800232,0.9565713,60345.0,60344.0,0.501646]
[1726406800449,0.9505713,60345.0,60344.0,0.501646]
[1726406800669,0.6191443,60345.0,60344.0,0.501646]
[1726406801101,0.9505713,60345.0,60344.0,0.501646]
[1726406801576,0.6191443,60345.0,60344.0,0.501646]
[1726406804028,0.59314,60345.0,60344.0,0.501646]
[1726406807083,0.9505714,60345.0,60344.0,0.501646]
[1726406807297,0.6191444,60345.0,60344.0,0.501646]
[1726406807982,0.9505714,60345.0,60344.0,0.501646]
[1726406808169,0.6191444,60345.0,60344.0,0.501646]
[1726406808396,0.9505714,60345.0,60344.0,0.501646]
[1726406808836,0.74343685,60345.0,60344.0,0.501646]
[1726406809256,1.07486385,60345.0,60344.0,0.501646]
[1726406809467,0.9505714,60345.0,60344.0,0.501646]
[1726406809689,1.07489459,60345.0,60344.0,0.501646]
[1726406810203,1.07489455,60345.0,60344.0,0.501646]
[1726406810418,0.9505714,60345.0,60344.0,0.501646]
[1726406812160,1.2819984,60345.0,60344.0,0.501646]
[1726406812378,0.9505714,60345.0,60344.0,0.501646]
[1726406813432,1.2819984,60345.0,60344.0,0.501646]
[1726406814081,0.9505714,60345.0,60344.0,0.501646]
[1726406814553,1.255994,60345.0,60344.0,0.501646]